[Event "Titled Tuesday Blitz January 03 Late 2023"]
[White "Karttunen, Mika"]
[Black "Rustemov, Alexander"]
[WhiteFideId "502081"]
[BlackFideId "4119002"]
[WhiteElo "2490"]
[BlackElo "2525"]
[Result "0-1"]
[Round "09"]
[TimeControl "180+2"]
[Date "2023.01.03"]
[WhiteClock "0:00:06"]
[BlackClock "0:00:19"]

1. d4 {[%clk 0:03:00]}  g6 {[%clk 0:02:55]} 2. e4 {[%clk 0:03:00]}  Bg7 {[%clk 0:02:54]} 3. c4 {[%clk 0:02:51]}  d6 {[%clk 0:02:53]} 4. Nc3 {[%clk 0:02:51]}  e5 {[%clk 0:02:51]} 5. d5 {[%clk 0:02:47]}  a5 {[%clk 0:02:45]} 6. Bd3 {[%clk 0:02:46]}  Na6 {[%clk 0:02:44]} 7. Nf3 {[%clk 0:02:44]}  Bh6 {[%clk 0:02:33]} 8. h3 {[%clk 0:02:37]}  Bxc1 {[%clk 0:02:29]} 9. Qxc1 {[%clk 0:02:30]}  Nf6 {[%clk 0:02:28]} 10. Qh6 {[%clk 0:02:23]}  Qe7 {[%clk 0:02:26]} 11. O-O-O {[%clk 0:02:19]}  Qf8 {[%clk 0:02:24]} 12. Qe3 {[%clk 0:02:17]}  Bd7 {[%clk 0:02:18]} 13. Kb1 {[%clk 0:02:11]}  Qe7 {[%clk 0:02:18]} 14. g4 {[%clk 0:02:10]}  Nc5 {[%clk 0:02:12]} 15. Be2 {[%clk 0:02:04]}  b6 {[%clk 0:02:11]} 16. Nd2 {[%clk 0:01:59]}  h5 {[%clk 0:02:01]} 17. g5 {[%clk 0:01:26]}  Nh7 {[%clk 0:02:00]} 18. h4 {[%clk 0:01:25]}  f6 {[%clk 0:01:53]} 19. gxf6 {[%clk 0:01:20]}  Qxf6 {[%clk 0:01:53]} 20. Rdg1 {[%clk 0:01:17]}  Ke7 {[%clk 0:01:51]} 21. Rg3 {[%clk 0:01:08]}  Raf8 {[%clk 0:01:50]} 22. f3 {[%clk 0:00:54]}  Rhg8 {[%clk 0:01:42]} 23. Qg1 {[%clk 0:00:47]}  Be8 {[%clk 0:01:32]} 24. Nb5 {[%clk 0:00:28]}  Bxb5 {[%clk 0:01:22]} 25. cxb5 {[%clk 0:00:28]}  Rg7 {[%clk 0:00:59]} 26. Nc4 {[%clk 0:00:25]}  Rfg8 {[%clk 0:00:59]} 27. Ne3 {[%clk 0:00:25]}  Kd8 {[%clk 0:00:54]} 28. Rh2 {[%clk 0:00:22]}  g5 {[%clk 0:00:52]} 29. Nf5 {[%clk 0:00:21]}  Rg6 {[%clk 0:00:52]} 30. Rhg2 {[%clk 0:00:16]}  Nd7 {[%clk 0:00:42]} 31. hxg5 {[%clk 0:00:16]}  Rxg5 {[%clk 0:00:41]} 32. Rxg5 {[%clk 0:00:14]}  Rxg5 {[%clk 0:00:42]} 33. Kc2 {[%clk 0:00:11]}  Ndf8 {[%clk 0:00:40]} 34. Qh2 {[%clk 0:00:11]}  Ng6 {[%clk 0:00:39]} 35. Bf1 {[%clk 0:00:08]}  Rxg2+ {[%clk 0:00:35]} 36. Qxg2 {[%clk 0:00:08]}  Qg5 {[%clk 0:00:35]} 37. Qh2 {[%clk 0:00:07]}  Nf4 {[%clk 0:00:33]} 38. Kd1 {[%clk 0:00:07]}  Nf8 {[%clk 0:00:30]} 39. Qh4 {[%clk 0:00:06]}  Qxh4 {[%clk 0:00:28]} 40. Nxh4 {[%clk 0:00:07]}  Ke7 {[%clk 0:00:28]} 41. Ke1 {[%clk 0:00:07]}  Kf6 {[%clk 0:00:27]} 42. Kf2 {[%clk 0:00:08]}  N8g6 {[%clk 0:00:26]} 43. Nf5 {[%clk 0:00:07]}  h4 {[%clk 0:00:27]} 44. Ne3 {[%clk 0:00:07]}  Kg5 {[%clk 0:00:26]} 45. Kg1 {[%clk 0:00:06]}  Nh5 {[%clk 0:00:23]} 46. Kh2 {[%clk 0:00:06]}  Kf4 {[%clk 0:00:23]} 47. Nf5 {[%clk 0:00:06]}  Kxf3 {[%clk 0:00:22]} 48. Bg2+ {[%clk 0:00:06]}  Ke2 {[%clk 0:00:19]} 49. Ng7 {[%clk 0:00:06]}  Nxg7 {[%clk 0:00:19]} 0-1


[Site "https://www.chess.com"]

[Event "Titled Tuesday Blitz January 03 Late 2023"]
[White "Bayo Milagro, Alvaro"]
[Black "Dimitrov, Atanas"]
[WhiteFideId "22275240"]
[BlackFideId "2901315"]
[WhiteElo "2287"]
[BlackElo "2269"]
[Result "1-0"]
[Round "09"]
[TimeControl "180+2"]
[Date "2023.01.03"]
[WhiteClock "0:00:16"]
[BlackClock "0:00:01"]

1. d4 {[%clk 0:02:56]}  Nf6 {[%clk 0:03:00]} 2. Nf3 {[%clk 0:02:56]}  e6 {[%clk 0:02:59]} 3. c4 {[%clk 0:02:57]}  Be7 {[%clk 0:03:00]} 4. g3 {[%clk 0:02:53]}  O-O {[%clk 0:03:00]} 5. Bg2 {[%clk 0:02:53]}  d5 {[%clk 0:03:00]} 6. O-O {[%clk 0:02:54]}  b6 {[%clk 0:02:59]} 7. Nc3 {[%clk 0:02:52]}  Bb7 {[%clk 0:02:59]} 8. cxd5 {[%clk 0:02:53]}  Nxd5 {[%clk 0:02:59]} 9. Re1 {[%clk 0:02:53]}  Nxc3 {[%clk 0:02:56]} 10. bxc3 {[%clk 0:02:53]}  c5 {[%clk 0:02:56]} 11. e4 {[%clk 0:02:53]}  cxd4 {[%clk 0:02:54]} 12. cxd4 {[%clk 0:02:54]}  Nc6 {[%clk 0:02:54]} 13. Bf4 {[%clk 0:02:53]}  Bf6 {[%clk 0:02:49]} 14. e5 {[%clk 0:02:48]}  Be7 {[%clk 0:02:48]} 15. Rc1 {[%clk 0:02:47]}  Rc8 {[%clk 0:02:46]} 16. h4 {[%clk 0:02:43]}  Nb4 {[%clk 0:02:36]} 17. Rxc8 {[%clk 0:02:39]}  Qxc8 {[%clk 0:02:35]} 18. Bg5 {[%clk 0:02:39]}  Bxg5 {[%clk 0:02:29]} 19. Nxg5 {[%clk 0:02:38]}  Bxg2 {[%clk 0:02:29]} 20. Kxg2 {[%clk 0:02:39]}  h6 {[%clk 0:02:28]} 21. Ne4 {[%clk 0:02:36]}  Qc6 {[%clk 0:02:21]} 22. Qf3 {[%clk 0:02:32]}  Qd5 {[%clk 0:02:10]} 23. Nd6 {[%clk 0:01:35]}  a5 {[%clk 0:01:04]} 24. Qxd5 {[%clk 0:01:25]}  Nxd5 {[%clk 0:01:05]} 25. Rc1 {[%clk 0:01:21]}  f6 {[%clk 0:00:55]} 26. f4 {[%clk 0:01:20]}  Rb8 {[%clk 0:00:52]} 27. Kf3 {[%clk 0:01:14]}  h5 {[%clk 0:00:45]} 28. Ke4 {[%clk 0:00:42]}  fxe5 {[%clk 0:00:22]} 29. Kxe5 {[%clk 0:00:37]}  Kh7 {[%clk 0:00:08]} 30. f5 {[%clk 0:00:34]}  Nf6 {[%clk 0:00:02]} 31. fxe6 {[%clk 0:00:31]}  Ng4+ {[%clk 0:00:02]} 32. Kd5 {[%clk 0:00:29]}  Nf6+ {[%clk 0:00:02]} 33. Kc6 {[%clk 0:00:27]}  b5 {[%clk 0:00:01]} 34. Rf1 {[%clk 0:00:16]} 1-0


[Site "https://www.chess.com"]

[Event "Titled Tuesday Blitz January 03 Late 2023"]
[White "Skvortsov, Andrei"]
[Black "Cruz Mendez, Jean Marco"]
[WhiteFideId "24108600"]
[BlackFideId "3526402"]
[WhiteElo "2313"]
[BlackElo "2270"]
[Result "0-1"]
[Round "09"]
[TimeControl "180+2"]
[Date "2023.01.03"]
[WhiteClock "0:00:08"]
[BlackClock "0:00:13"]

1. d4 {[%clk 0:03:00]}  Nf6 {[%clk 0:02:59]} 2. c4 {[%clk 0:03:01]}  g6 {[%clk 0:02:58]} 3. Nc3 {[%clk 0:02:59]}  Bg7 {[%clk 0:02:59]} 4. g3 {[%clk 0:02:59]}  O-O {[%clk 0:02:58]} 5. Bg2 {[%clk 0:03:00]}  d6 {[%clk 0:02:57]} 6. Nf3 {[%clk 0:02:59]}  c5 {[%clk 0:02:56]} 7. O-O {[%clk 0:02:59]}  Nbd7 {[%clk 0:02:54]} 8. d5 {[%clk 0:02:56]}  Ne8 {[%clk 0:02:51]} 9. Qc2 {[%clk 0:02:49]}  a6 {[%clk 0:02:51]} 10. e4 {[%clk 0:02:47]}  Rb8 {[%clk 0:02:51]} 11. a4 {[%clk 0:02:47]}  b6 {[%clk 0:02:49]} 12. Nd1 {[%clk 0:02:47]}  b5 {[%clk 0:02:47]} 13. axb5 {[%clk 0:02:46]}  axb5 {[%clk 0:02:48]} 14. Ne3 {[%clk 0:02:47]}  Nc7 {[%clk 0:02:46]} 15. Ra2 {[%clk 0:02:41]}  bxc4 {[%clk 0:02:46]} 16. Nxc4 {[%clk 0:02:41]}  Ba6 {[%clk 0:02:45]} 17. Re1 {[%clk 0:02:41]}  Bxc4 {[%clk 0:02:41]} 18. Qxc4 {[%clk 0:02:41]}  Rb4 {[%clk 0:02:40]} 19. Qc2 {[%clk 0:02:40]}  Qb8 {[%clk 0:02:39]} 20. Bh3 {[%clk 0:02:32]}  Ne5 {[%clk 0:02:38]} 21. Nxe5 {[%clk 0:02:29]}  Bxe5 {[%clk 0:02:39]} 22. Bd2 {[%clk 0:02:22]}  Rxb2 {[%clk 0:01:38]} 23. Rxb2 {[%clk 0:02:21]}  Qxb2 {[%clk 0:01:39]} 24. Qxb2 {[%clk 0:02:21]}  Bxb2 {[%clk 0:01:39]} 25. Rb1 {[%clk 0:02:09]}  Bd4 {[%clk 0:01:39]} 26. Rb7 {[%clk 0:02:04]}  Ne8 {[%clk 0:01:36]} 27. Rxe7 {[%clk 0:01:48]}  Nf6 {[%clk 0:01:37]} 28. Kg2 {[%clk 0:01:36]}  Rb8 {[%clk 0:01:35]} 29. g4 {[%clk 0:01:24]}  Rb2 {[%clk 0:01:34]} 30. Be1 {[%clk 0:01:22]}  h6 {[%clk 0:01:31]} 31. Kf3 {[%clk 0:01:17]}  Kg7 {[%clk 0:01:29]} 32. Bf1 {[%clk 0:01:16]}  Nh7 {[%clk 0:01:26]} 33. h4 {[%clk 0:01:11]}  Bf6 {[%clk 0:01:20]} 34. Rd7 {[%clk 0:01:06]}  Rb6 {[%clk 0:01:16]} 35. Ba5 {[%clk 0:00:51]}  Rb3+ {[%clk 0:00:43]} 36. Kg2 {[%clk 0:00:50]}  Be5 {[%clk 0:00:44]} 37. Bd8 {[%clk 0:00:31]}  Nf6 {[%clk 0:00:37]} 38. Bxf6+ {[%clk 0:00:30]}  Kxf6 {[%clk 0:00:38]} 39. Ra7 {[%clk 0:00:24]}  Rb2 {[%clk 0:00:37]} 40. Ra3 {[%clk 0:00:24]}  Bd4 {[%clk 0:00:33]} 41. Rf3+ {[%clk 0:00:24]}  Ke7 {[%clk 0:00:34]} 42. Bd3 {[%clk 0:00:21]}  Rd2 {[%clk 0:00:27]} 43. Bb5 {[%clk 0:00:18]}  f6 {[%clk 0:00:23]} 44. h5 {[%clk 0:00:18]}  g5 {[%clk 0:00:22]} 45. Kf1 {[%clk 0:00:16]}  Kd8 {[%clk 0:00:22]} 46. Ke1 {[%clk 0:00:15]}  Rb2 {[%clk 0:00:22]} 47. Bc4 {[%clk 0:00:14]}  Kc7 {[%clk 0:00:22]} 48. Ra3 {[%clk 0:00:14]}  Bxf2+ {[%clk 0:00:21]} 49. Kd1 {[%clk 0:00:14]}  Kb7 {[%clk 0:00:15]} 50. Ba6+ {[%clk 0:00:10]}  Kb6 {[%clk 0:00:14]} 51. Bc4 {[%clk 0:00:10]}  Rb4 {[%clk 0:00:13]} 52. Bd3 {[%clk 0:00:10]}  c4 {[%clk 0:00:12]} 53. Be2 {[%clk 0:00:07]}  Kc5 {[%clk 0:00:12]} 54. Ra6 {[%clk 0:00:06]}  Bg3 {[%clk 0:00:10]} 55. Kc2 {[%clk 0:00:05]}  Kd4 {[%clk 0:00:10]} 56. Ra3 {[%clk 0:00:05]}  Be5 {[%clk 0:00:09]} 57. Rf3 {[%clk 0:00:05]}  Kxe4 {[%clk 0:00:08]} 58. Kc1 {[%clk 0:00:03]}  c3 {[%clk 0:00:06]} 59. Rd3 {[%clk 0:00:03]}  Ra4 {[%clk 0:00:06]} 60. Rd1 {[%clk 0:00:02]}  Ra1+ {[%clk 0:00:06]} 61. Kc2 {[%clk 0:00:03]}  Rxd1 {[%clk 0:00:06]} 62. Kb3 {[%clk 0:00:04]}  Kxd5 {[%clk 0:00:06]} 63. Bxd1 {[%clk 0:00:03]}  Kd4 {[%clk 0:00:07]} 64. Kc2 {[%clk 0:00:04]}  Ke3 {[%clk 0:00:08]} 65. Kc1 {[%clk 0:00:04]}  d5 {[%clk 0:00:07]} 66. Bb3 {[%clk 0:00:05]}  d4 {[%clk 0:00:08]} 67. Kd1 {[%clk 0:00:05]}  d3 {[%clk 0:00:08]} 68. Ba4 {[%clk 0:00:05]}  Bd6 {[%clk 0:00:09]} 69. Bb3 {[%clk 0:00:05]}  c2+ {[%clk 0:00:08]} 70. Bxc2 {[%clk 0:00:05]}  dxc2+ {[%clk 0:00:09]} 71. Kxc2 {[%clk 0:00:05]}  Ke4 {[%clk 0:00:09]} 72. Kd2 {[%clk 0:00:06]}  Kf4 {[%clk 0:00:10]} 73. Ke2 {[%clk 0:00:07]}  Kxg4 {[%clk 0:00:11]} 74. Kf2 {[%clk 0:00:07]}  f5 {[%clk 0:00:12]} 75. Kg2 {[%clk 0:00:08]}  f4 {[%clk 0:00:13]} 0-1


[Site "https://www.chess.com"]

[Event "Titled Tuesday Blitz January 03 Late 2023"]
[White "Fiorito, Joaquin"]
[Black "Leiva, Gianmarco"]
[WhiteFideId "180173"]
[BlackFideId "3804399"]
[WhiteElo "2405"]
[BlackElo "2392"]
[Result "1-0"]
[Round "09"]
[TimeControl "180+2"]
[Date "2023.01.03"]
[WhiteClock "0:01:15"]
[BlackClock "0:00:04"]

1. d4 {[%clk 0:02:57]}  Nf6 {[%clk 0:02:59]} 2. Nc3 {[%clk 0:02:58]}  d5 {[%clk 0:02:58]} 3. Bf4 {[%clk 0:02:58]}  g6 {[%clk 0:02:58]} 4. e3 {[%clk 0:02:58]}  Bg7 {[%clk 0:02:58]} 5. h4 {[%clk 0:02:59]}  c5 {[%clk 0:02:53]} 6. Nb5 {[%clk 0:02:58]}  Na6 {[%clk 0:02:52]} 7. c3 {[%clk 0:02:57]}  h6 {[%clk 0:02:38]} 8. Nf3 {[%clk 0:02:55]}  O-O {[%clk 0:02:38]} 9. Ne5 {[%clk 0:02:55]}  Nb8 {[%clk 0:02:30]} 10. dxc5 {[%clk 0:02:35]}  a6 {[%clk 0:02:28]} 11. Nd4 {[%clk 0:02:35]}  Nfd7 {[%clk 0:02:27]} 12. Nxd7 {[%clk 0:02:34]}  Nxd7 {[%clk 0:02:28]} 13. c6 {[%clk 0:02:31]}  Nc5 {[%clk 0:02:21]} 14. cxb7 {[%clk 0:02:27]}  Bxb7 {[%clk 0:02:21]} 15. Nf3 {[%clk 0:02:11]}  a5 {[%clk 0:02:07]} 16. Be2 {[%clk 0:02:10]}  Re8 {[%clk 0:01:55]} 17. Be5 {[%clk 0:02:09]}  Bf8 {[%clk 0:01:50]} 18. O-O {[%clk 0:02:07]}  f6 {[%clk 0:01:49]} 19. Bh2 {[%clk 0:02:04]}  e5 {[%clk 0:01:45]} 20. c4 {[%clk 0:01:59]}  Kg7 {[%clk 0:01:42]} 21. Rc1 {[%clk 0:01:56]}  Rb8 {[%clk 0:01:40]} 22. b3 {[%clk 0:01:55]}  Ne6 {[%clk 0:01:27]} 23. cxd5 {[%clk 0:01:47]}  Bxd5 {[%clk 0:01:27]} 24. Nxe5 {[%clk 0:01:41]}  Ba8 {[%clk 0:00:08]} 25. Nc6 {[%clk 0:01:36]}  Qxd1 {[%clk 0:00:05]} 26. Rfxd1 {[%clk 0:01:37]}  Bxc6 {[%clk 0:00:04]} 27. Rxc6 {[%clk 0:01:37]}  Rbc8 {[%clk 0:00:03]} 28. Rd7+ {[%clk 0:01:33]}  Kg8 {[%clk 0:00:03]} 29. Rxc8 {[%clk 0:01:17]}  Rxc8 {[%clk 0:00:04]} 30. Bc4 {[%clk 0:01:17]}  Re8 {[%clk 0:00:04]} 31. Bd6 {[%clk 0:01:15]} 1-0


[Site "https://www.chess.com"]

[Event "Titled Tuesday Blitz January 03 Late 2023"]
[White "reevecanada"]
[Black "Vlassov, Nikolai"]
[BlackFideId "4103360"]
[WhiteElo "2486"]
[BlackElo "2283"]
[Result "0-1"]
[Round "09"]
[TimeControl "180+2"]
[Date "2023.01.03"]
[WhiteClock "0:01:14"]
[BlackClock "0:01:14"]

1. e4 {[%clk 0:02:59]}  Nc6 {[%clk 0:02:59]} 2. Nc3 {[%clk 0:02:57]}  Nf6 {[%clk 0:02:59]} 3. d4 {[%clk 0:02:56]}  d5 {[%clk 0:02:59]} 4. e5 {[%clk 0:02:56]}  Nd7 {[%clk 0:02:59]} 5. Nxd5 {[%clk 0:02:51]}  Ndb8 {[%clk 0:02:59]} 6. Nc3 {[%clk 0:02:43]}  Qxd4 {[%clk 0:02:58]} 7. Qxd4 {[%clk 0:02:37]}  Nxd4 {[%clk 0:02:58]} 8. Bd3 {[%clk 0:02:38]}  Bf5 {[%clk 0:02:56]} 9. Nb5 {[%clk 0:02:29]}  Bxd3 {[%clk 0:02:46]} 10. Nxd4 {[%clk 0:02:25]}  Bg6 {[%clk 0:02:45]} 11. Be3 {[%clk 0:02:18]}  e6 {[%clk 0:02:38]} 12. Nb5 {[%clk 0:02:14]}  Na6 {[%clk 0:02:35]} 13. O-O-O {[%clk 0:02:11]}  c6 {[%clk 0:02:18]} 14. Nd6+ {[%clk 0:02:08]}  Bxd6 {[%clk 0:02:19]} 15. exd6 {[%clk 0:02:08]}  Nb4 {[%clk 0:01:49]} 16. c3 {[%clk 0:01:51]}  Nd3+ {[%clk 0:01:46]} 17. Kd2 {[%clk 0:01:45]}  Nxb2 {[%clk 0:01:42]} 18. Ke2 {[%clk 0:01:44]}  Nxd1 {[%clk 0:01:40]} 19. Kxd1 {[%clk 0:01:44]}  O-O-O {[%clk 0:01:40]} 20. Bc5 {[%clk 0:01:43]}  b6 {[%clk 0:01:40]} 21. Ba3 {[%clk 0:01:42]}  c5 {[%clk 0:01:40]} 22. Nf3 {[%clk 0:01:41]}  Rxd6+ {[%clk 0:01:40]} 23. Kc1 {[%clk 0:01:41]}  Rhd8 {[%clk 0:01:38]} 24. Bb2 {[%clk 0:01:41]}  f6 {[%clk 0:01:37]} 25. Re1 {[%clk 0:01:38]}  Bh5 {[%clk 0:01:35]} 26. c4 {[%clk 0:01:35]}  Bxf3 {[%clk 0:01:33]} 27. gxf3 {[%clk 0:01:36]}  e5 {[%clk 0:01:33]} 28. f4 {[%clk 0:01:29]}  exf4 {[%clk 0:01:31]} 29. Re4 {[%clk 0:01:29]}  g5 {[%clk 0:01:31]} 30. Re7 {[%clk 0:01:28]}  R8d7 {[%clk 0:01:30]} 31. Re8+ {[%clk 0:01:27]}  Kb7 {[%clk 0:01:31]} 32. Rf8 {[%clk 0:01:27]}  Rd1+ {[%clk 0:01:21]} 33. Kc2 {[%clk 0:01:26]}  R7d2+ {[%clk 0:01:21]} 34. Kc3 {[%clk 0:01:24]}  Rd3+ {[%clk 0:01:21]} 35. Kc2 {[%clk 0:01:24]}  R1d2+ {[%clk 0:01:21]} 36. Kc1 {[%clk 0:01:24]}  Rxf2 {[%clk 0:01:20]} 37. Bxf6 {[%clk 0:01:21]}  Rxh2 {[%clk 0:01:16]} 38. Be5 {[%clk 0:01:16]}  Re3 {[%clk 0:01:14]} 39. Rf7+ {[%clk 0:01:15]}  Ka6 {[%clk 0:01:14]} 40. Bb8 {[%clk 0:01:14]}  Re1# {[%clk 0:01:14]} 0-1


[Site "https://www.chess.com"]

[Event "Titled Tuesday Blitz January 03 Late 2023"]
[White "Sanchez, Robert"]
[Black "Papp, Levente"]
[WhiteFideId "2034360"]
[BlackFideId "751243"]
[WhiteElo "1966"]
[BlackElo "2353"]
[Result "0-1"]
[Round "09"]
[TimeControl "180+2"]
[Date "2023.01.03"]
[WhiteClock "0:00:51"]
[BlackClock "0:00:29"]

1. e4 {[%clk 0:03:00]}  e6 {[%clk 0:02:51]} 2. d4 {[%clk 0:02:59]}  d5 {[%clk 0:02:50]} 3. Nc3 {[%clk 0:03:00]}  Bb4 {[%clk 0:02:49]} 4. e5 {[%clk 0:03:00]}  Ne7 {[%clk 0:02:49]} 5. Bd2 {[%clk 0:02:57]}  b6 {[%clk 0:02:47]} 6. Qg4 {[%clk 0:02:54]}  Nf5 {[%clk 0:02:45]} 7. O-O-O {[%clk 0:02:45]}  h5 {[%clk 0:02:34]} 8. Qf4 {[%clk 0:02:44]}  c5 {[%clk 0:02:27]} 9. dxc5 {[%clk 0:02:36]}  bxc5 {[%clk 0:02:22]} 10. Kb1 {[%clk 0:02:27]}  Nc6 {[%clk 0:02:05]} 11. Nf3 {[%clk 0:02:15]}  Rb8 {[%clk 0:01:59]} 12. Bd3 {[%clk 0:02:07]}  Nce7 {[%clk 0:01:45]} 13. a3 {[%clk 0:01:56]}  Bxc3 {[%clk 0:01:22]} 14. Bxc3 {[%clk 0:01:56]}  Bd7 {[%clk 0:01:22]} 15. h3 {[%clk 0:01:39]}  h4 {[%clk 0:01:19]} 16. g4 {[%clk 0:01:35]}  hxg3 {[%clk 0:01:19]} 17. fxg3 {[%clk 0:01:36]}  d4 {[%clk 0:01:15]} 18. Bd2 {[%clk 0:01:35]}  Nd5 {[%clk 0:01:14]} 19. Qg4 {[%clk 0:01:23]}  Qb6 {[%clk 0:00:49]} 20. Bc1 {[%clk 0:01:20]}  g6 {[%clk 0:00:42]} 21. Bxf5 {[%clk 0:01:18]}  exf5 {[%clk 0:00:39]} 22. Qg5 {[%clk 0:01:11]}  Nc3+ {[%clk 0:00:39]} 23. Ka1 {[%clk 0:01:11]}  Nxd1 {[%clk 0:00:39]} 24. Rxd1 {[%clk 0:01:12]}  Be6 {[%clk 0:00:34]} 25. Qf6 {[%clk 0:01:07]}  Kd7 {[%clk 0:00:32]} 26. c3 {[%clk 0:00:58]}  Qb3 {[%clk 0:00:31]} 27. Kb1 {[%clk 0:00:51]}  Qxd1 {[%clk 0:00:29]} 0-1


[Site "https://www.chess.com"]

[Event "Titled Tuesday Blitz January 03 Late 2023"]
[White "Espinosa, Pedro"]
[Black "AidenRchess"]
[WhiteFideId "30921066"]
[WhiteElo "2229"]
[BlackElo "2398"]
[Result "0-1"]
[Round "09"]
[TimeControl "180+2"]
[Date "2023.01.03"]
[WhiteClock "0:00:29"]
[BlackClock "0:00:31"]

1. d4 {[%clk 0:02:58]}  Nf6 {[%clk 0:02:58]} 2. c4 {[%clk 0:02:59]}  g6 {[%clk 0:02:58]} 3. Nc3 {[%clk 0:02:59]}  d5 {[%clk 0:02:57]} 4. Nf3 {[%clk 0:02:59]}  Bg7 {[%clk 0:02:57]} 5. Qb3 {[%clk 0:02:59]}  dxc4 {[%clk 0:02:57]} 6. Qxc4 {[%clk 0:03:00]}  O-O {[%clk 0:02:57]} 7. e4 {[%clk 0:03:01]}  a6 {[%clk 0:02:58]} 8. Be2 {[%clk 0:03:01]}  b5 {[%clk 0:02:58]} 9. Qb3 {[%clk 0:03:01]}  c5 {[%clk 0:02:58]} 10. dxc5 {[%clk 0:03:02]}  Bb7 {[%clk 0:02:57]} 11. e5 {[%clk 0:02:48]}  Nfd7 {[%clk 0:02:57]} 12. Be3 {[%clk 0:02:44]}  Nxe5 {[%clk 0:02:56]} 13. Nxe5 {[%clk 0:02:42]}  Bxe5 {[%clk 0:02:57]} 14. O-O {[%clk 0:02:41]}  Nc6 {[%clk 0:02:52]} 15. Rad1 {[%clk 0:02:35]}  Nd4 {[%clk 0:02:41]} 16. Bxd4 {[%clk 0:02:22]}  Bxd4 {[%clk 0:02:41]} 17. a4 {[%clk 0:02:10]}  e5 {[%clk 0:02:30]} 18. axb5 {[%clk 0:02:08]}  axb5 {[%clk 0:02:30]} 19. Nxb5 {[%clk 0:01:56]}  Qg5 {[%clk 0:02:21]} 20. Bf3 {[%clk 0:01:45]}  Bxf3 {[%clk 0:02:10]} 21. Qxf3 {[%clk 0:01:46]}  Bxc5 {[%clk 0:02:08]} 22. Nc7 {[%clk 0:01:30]}  Rab8 {[%clk 0:01:55]} 23. Nd5 {[%clk 0:01:17]}  Rxb2 {[%clk 0:01:34]} 24. Qc3 {[%clk 0:01:00]}  Rb5 {[%clk 0:01:09]} 25. Nc7 {[%clk 0:00:36]}  Bd4 {[%clk 0:01:03]} 26. Qc6 {[%clk 0:00:27]}  Rc5 {[%clk 0:01:01]} 27. Qb6 {[%clk 0:00:07]}  Rc2 {[%clk 0:00:58]} 28. Qb7 {[%clk 0:00:05]}  Qe7 {[%clk 0:00:50]} 29. Rc1 {[%clk 0:00:05]}  Bxf2+ {[%clk 0:00:44]} 30. Kh1 {[%clk 0:00:06]}  Rxc1 {[%clk 0:00:38]} 31. Rxc1 {[%clk 0:00:07]}  e4 {[%clk 0:00:34]} 32. Qc6 {[%clk 0:00:06]}  e3 {[%clk 0:00:30]} 33. Nd5 {[%clk 0:00:07]}  Qg5 {[%clk 0:00:28]} 34. Qc3 {[%clk 0:00:06]}  f6 {[%clk 0:00:20]} 35. Qc4 {[%clk 0:00:06]}  Rf7 {[%clk 0:00:16]} 36. Ne7+ {[%clk 0:00:05]}  Kg7 {[%clk 0:00:15]} 37. Nc6 {[%clk 0:00:04]}  e2 {[%clk 0:00:13]} 38. Nd8 {[%clk 0:00:02]}  Qxc1+ {[%clk 0:00:11]} 39. Qxc1 {[%clk 0:00:02]}  e1=Q+ {[%clk 0:00:12]} 40. Qxe1 {[%clk 0:00:03]}  Bxe1 {[%clk 0:00:12]} 41. Nxf7 {[%clk 0:00:03]}  Kxf7 {[%clk 0:00:13]} 42. Kg1 {[%clk 0:00:04]}  Bc3 {[%clk 0:00:13]} 43. Kf1 {[%clk 0:00:05]}  Ke6 {[%clk 0:00:14]} 44. Ke2 {[%clk 0:00:05]}  Be5 {[%clk 0:00:15]} 45. g3 {[%clk 0:00:06]}  h5 {[%clk 0:00:15]} 46. Kf3 {[%clk 0:00:07]}  h4 {[%clk 0:00:16]} 47. gxh4 {[%clk 0:00:07]}  Bxh2 {[%clk 0:00:16]} 48. Kg4 {[%clk 0:00:08]}  Be5 {[%clk 0:00:16]} 49. h5 {[%clk 0:00:09]}  gxh5+ {[%clk 0:00:17]} 50. Kxh5 {[%clk 0:00:10]}  f5 {[%clk 0:00:18]} 51. Kg5 {[%clk 0:00:11]}  Bf6+ {[%clk 0:00:18]} 52. Kf4 {[%clk 0:00:11]}  Be7 {[%clk 0:00:19]} 53. Ke3 {[%clk 0:00:12]}  Ke5 {[%clk 0:00:19]} 54. Kf3 {[%clk 0:00:13]}  f4 {[%clk 0:00:20]} 55. Kg4 {[%clk 0:00:14]}  Bf6 {[%clk 0:00:21]} 56. Kf3 {[%clk 0:00:14]}  Kf5 {[%clk 0:00:21]} 57. Kf2 {[%clk 0:00:15]}  Ke4 {[%clk 0:00:22]} 58. Ke2 {[%clk 0:00:16]}  f3+ {[%clk 0:00:23]} 59. Kf2 {[%clk 0:00:17]}  Bd4+ {[%clk 0:00:23]} 60. Kf1 {[%clk 0:00:18]}  f2 {[%clk 0:00:23]} 61. Ke2 {[%clk 0:00:18]}  Kf4 {[%clk 0:00:24]} 62. Kf1 {[%clk 0:00:19]}  Kg3 {[%clk 0:00:24]} 63. Ke2 {[%clk 0:00:19]}  Kg2 {[%clk 0:00:25]} 64. Kd3 {[%clk 0:00:20]}  f1=Q+ {[%clk 0:00:25]} 65. Kxd4 {[%clk 0:00:21]}  Qf3 {[%clk 0:00:26]} 66. Ke5 {[%clk 0:00:22]}  Kg3 {[%clk 0:00:26]} 67. Kd6 {[%clk 0:00:22]}  Qe4 {[%clk 0:00:26]} 68. Kc7 {[%clk 0:00:23]}  Qd5 {[%clk 0:00:27]} 69. Kb8 {[%clk 0:00:24]}  Qf7 {[%clk 0:00:27]} 70. Ka8 {[%clk 0:00:25]}  Kf4 {[%clk 0:00:28]} 71. Kb8 {[%clk 0:00:26]}  Ke5 {[%clk 0:00:29]} 72. Ka8 {[%clk 0:00:27]}  Kd6 {[%clk 0:00:30]} 73. Kb8 {[%clk 0:00:28]}  Kc6 {[%clk 0:00:30]} 74. Ka8 {[%clk 0:00:29]}  Qb7# {[%clk 0:00:31]} 0-1


[Site "https://www.chess.com"]

[Event "Titled Tuesday Blitz January 03 Late 2023"]
[White "Fernandez, Maria Florencia"]
[Black "Rosen, Eric"]
[WhiteFideId "116459"]
[BlackFideId "2032562"]
[WhiteElo "2129"]
[BlackElo "2349"]
[Result "0-1"]
[Round "09"]
[TimeControl "180+2"]
[Date "2023.01.03"]
[WhiteClock "0:00:02"]
[BlackClock "0:00:43"]

1. d4 {[%clk 0:03:00]}  d5 {[%clk 0:03:00]} 2. c4 {[%clk 0:03:00]}  e6 {[%clk 0:03:00]} 3. Nc3 {[%clk 0:03:00]}  Nf6 {[%clk 0:03:01]} 4. cxd5 {[%clk 0:02:59]}  exd5 {[%clk 0:03:01]} 5. Bg5 {[%clk 0:02:59]}  c6 {[%clk 0:03:02]} 6. e3 {[%clk 0:02:59]}  Bd6 {[%clk 0:03:01]} 7. Bd3 {[%clk 0:02:59]}  h6 {[%clk 0:03:00]} 8. Bh4 {[%clk 0:03:00]}  O-O {[%clk 0:03:00]} 9. Nge2 {[%clk 0:02:58]}  Re8 {[%clk 0:02:58]} 10. Qc2 {[%clk 0:02:57]}  a5 {[%clk 0:02:58]} 11. O-O-O {[%clk 0:02:56]}  Na6 {[%clk 0:02:55]} 12. Bf5 {[%clk 0:02:42]}  Nb4 {[%clk 0:02:43]} 13. Qb1 {[%clk 0:02:41]}  b5 {[%clk 0:02:42]} 14. Bxc8 {[%clk 0:02:05]}  Rxc8 {[%clk 0:02:40]} 15. Qf5 {[%clk 0:02:01]}  Be7 {[%clk 0:02:35]} 16. Kb1 {[%clk 0:01:57]}  a4 {[%clk 0:02:24]} 17. Nc1 {[%clk 0:01:40]}  a3 {[%clk 0:02:12]} 18. b3 {[%clk 0:01:37]}  g6 {[%clk 0:01:57]} 19. Qf3 {[%clk 0:01:28]}  Ne4 {[%clk 0:01:57]} 20. Nxe4 {[%clk 0:01:21]}  dxe4 {[%clk 0:01:54]} 21. Bxe7 {[%clk 0:01:20]}  Qxe7 {[%clk 0:01:49]} 22. Qf4 {[%clk 0:01:10]}  Nd5 {[%clk 0:01:42]} 23. Qxh6 {[%clk 0:01:04]}  Nc3+ {[%clk 0:01:40]} 24. Ka1 {[%clk 0:01:02]}  Nxd1 {[%clk 0:01:30]} 25. Rxd1 {[%clk 0:01:03]}  c5 {[%clk 0:01:29]} 26. Ne2 {[%clk 0:00:55]}  cxd4 {[%clk 0:01:23]} 27. exd4 {[%clk 0:00:40]}  Rc2 {[%clk 0:01:17]} 28. Rd2 {[%clk 0:00:21]}  Rec8 {[%clk 0:01:12]} 29. Rxc2 {[%clk 0:00:21]}  Rxc2 {[%clk 0:01:13]} 30. Qe3 {[%clk 0:00:21]}  Qb4 {[%clk 0:01:03]} 31. Kb1 {[%clk 0:00:10]}  Rb2+ {[%clk 0:00:58]} 32. Ka1 {[%clk 0:00:06]}  Qe1+ {[%clk 0:00:47]} 33. Nc1 {[%clk 0:00:06]}  Qxf2 {[%clk 0:00:47]} 34. Qxe4 {[%clk 0:00:02]}  Rxa2+ {[%clk 0:00:43]} 0-1


[Site "https://www.chess.com"]